bitfinex-derivatives/quotes_ETHF0:USTF0_20250417
["timestamp","ask_amount","ask_price","bid_price","bid_amount"]
[1744904861102,9.62543,1583.4,1583.3,0.00947598]
[1744904861799,1.26357,1583.1,1583.0,8.25260408]
[1744904862411,1.26357,1583.1,1583.0,0.001]
[1744904862702,2.97047,1583.1,1583.0,0.001]
[1744904865404,1.7674,1583.2,1583.1,1.26357]
[1744904865705,5.99,1583.4,1583.2,1.26349]
[1744904865907,2.93171,1583.3,1583.2,6.08879]
[1744904866602,2.93171,1583.3,1583.2,4.8253]
[1744904866902,2.93171,1583.3,1583.2,3.2078]
[1744904867207,2.93171,1583.3,1583.0,0.7962]
[1744904867208,1.26357,1583.1,1583.0,3.2088]
[1744904867398,1.26357,1583.1,1583.0,0.001]
[1744904867597,2.90987,1583.1,1583.0,0.001]
[1744904868000,2.90987,1583.1,1583.0,4.47245]
[1744904868204,2.90987,1583.1,1583.0,5.29365]
[1744904868406,2.90987,1583.1,1583.0,7.03745]
[1744904868606,2.90987,1583.1,1583.0,5.7738]
[1744904868908,2.90987,1583.1,1583.0,2.08585]
[1744904869202,2.90987,1583.1,1583.0,0.8222]
[1744904869607,2.90987,1583.1,1583.0,4.03]
[1744904869803,2.90987,1583.1,1583.0,5.29365]
[1744904870307,1.6463,1583.1,1583.0,7.01185]
[1744904870607,1.26355,1583.2,1583.1,1.26357]
[1744904870809,1.26355,1583.2,1583.1,2.98177]
[1744904871106,1.657,1583.3,1583.2,1.26349]
[1744904871307,1.657,1583.3,1583.2,6.18949]
[1744904872701,1.2634,1583.4,1583.3,1.26341]
[1744904872702,1.26333,1583.4,1583.3,1.26341]
[1744904872902,2.88773,1583.4,1583.3,1.26341]
[1744904873201,2.88773,1583.4,1583.3,3.80431]
[1744904873911,1.6244,1583.4,1583.3,3.80431]
[1744904874411,7.25226598,1583.6,1583.5,1.26325]
[1744904874412,0.00947598,1583.6,1583.5,1.26325]
[1744904874713,0.00947598,1583.6,1583.5,10.84135]
[1744904876604,1.67817598,1583.6,1583.5,10.84135]
[1744904876803,0.00947598,1583.6,1583.5,10.84135]
[1744904877410,0.00947598,1583.6,1583.5,51.64135]
[1744904879619,0.00947598,1583.6,1583.5,56.64135]
[1744904879817,1.6687,1583.8,1583.7,1.26309]
[1744904880020,0.8378,1583.9,1583.8,1.26301]
[1744904880418,3.76803,1583.9,1583.8,1.26301]
[1744904880616,2.5051,1583.9,1583.8,1.26301]
[1744904881917,2.06473,1584.1,1583.8,7.57341]
[1744904882123,2.12349,1584.2,1584.1,1.26277]
[1744904882421,1.26279,1584.1,1584.0,1.27226598]
[1744904882615,1.26277,1584.1,1584.0,1.27226598]
[1744904882821,1.26277,1584.1,1584.0,0.00947598]
[1744904883117,1.26277,1584.1,1584.0,0.01047598]
[1744904883322,2.88317,1584.1,1584.0,0.01047598]
[1744904883822,2.88317,1584.1,1584.0,1.27332598]
[1744904884123,2.88317,1584.1,1584.0,0.01047598]
[1744904884510,11.09097,1584.1,1584.0,0.01047598]
[1744904884716,1.26309,1583.7,1583.6,7.8468]
[1744904884910,1.26309,1583.7,1583.6,9.10993]
[1744904885623,0.8123,1583.8,1583.7,1.26309]
[1744904885824,1.6187,1583.9,1583.8,1.26301]
[1744904886323,1.6187,1583.9,1583.8,7.03351]
[1744904887013,0.00947598,1584.3,1584.1,1.26269]
[1744904887217,3.32947598,1584.3,1584.2,1.26269]
[1744904887417,4.59214598,1584.3,1584.2,1.26269]
[1744904888324,3.32947598,1584.3,1584.2,1.26269]
[1744904888618,0.00947598,1584.3,1584.2,1.26269]
[1744904888827,0.00947598,1584.3,1584.2,11.66979]
[1744904891022,2.96367,1584.6,1584.5,1.26245]
[1744904891219,1.7013,1584.6,1584.5,1.26245]
[1744904891426,1.26221,1584.8,1584.7,1.26228]
[1744904891725,1.26222,1584.8,1584.7,1.26224]
[1744904892221,2.91992,1584.8,1584.7,1.26224]
[1744904892526,2.91992,1584.8,1584.6,6.10058598]
[1744904892726,1.26222,1584.8,1584.7,1.26229]
[1744904893732,1.26229,1584.7,1584.6,3.21727598]
[1744904894025,1.26229,1584.7,1584.6,4.47964598]
[1744904894219,1.26227,1584.8,1584.7,1.26227]
[1744904894421,8.02505323,1584.9,1584.6,4.47958598]
[1744904894622,11.18040323,1584.9,1584.6,4.47958598]
[1744904894821,1.26229,1584.7,1584.6,4.47958598]
[1744904895428,1.26229,1584.7,1584.6,3.21727598]
[1744904897528,1.26229,1584.7,1584.6,0.00947598]
[1744904897730,1.26229,1584.7,1584.6,1.27184598]
[1744904897931,1.26229,1584.8,1584.7,1.26226]
[1744904898630,1.26229,1584.7,1584.6,0.00947598]
[1744904898831,1.26229,1584.7,1584.6,1.27184598]
[1744904899030,1.26229,1584.7,1584.6,0.00947598]
[1744904899826,6.26229,1584.7,1584.6,0.00947598]
[1744904900027,9.47009,1584.7,1584.6,0.00947598]
[1744904900227,6.26229,1584.7,1584.6,0.00947598]
[1744904900432,1.26229,1584.7,1584.6,0.00947598]
[1744904902034,1.26229,1584.7,1584.6,1.27184598]
[1744904903337,1.26229,1584.7,1584.6,5.90384598]
[1744904903733,1.26229,1584.7,1584.6,4.64147598]
[1744904903939,1.26229,1584.7,1584.6,5.90384598]
[1744904904143,1.26229,1584.7,1584.6,4.64147598]
[1744904904337,1.26229,1584.7,1584.6,5.90384598]
[1744904904538,1.26229,1584.7,1584.6,9.11164598]
[1744904904841,2.95350598,1584.9,1584.8,1.26221]
[1744904905032,1.26221,1584.8,1584.7,3.01162]
[1744904905232,2.90141,1584.8,1584.7,43.81162]
[1744904906042,2.90141,1584.8,1584.7,40.8]
[1744904906245,2.90141,1584.8,1584.7,42.06229]
[1744904906542,2.90141,1584.8,1584.7,40.8]
[1744904906747,1.26229,1584.7,1584.6,9.11163598]
[1744904906939,1.7564,1584.7,1584.6,9.11163598]
[1744904907444,1.7564,1584.7,1584.6,11.54483598]
[1744904909931,1.69137598,1584.9,1584.8,1.26221]
[1744904910445,1.26223,1584.8,1584.7,1.26223]
[1744904910644,2.95354598,1584.9,1584.8,1.26221]
[1744904911946,1.26221,1584.8,1584.7,1.26223]
[1744904912243,2.97931,1584.8,1584.7,1.26223]
[1744904914641,1.7171,1584.8,1584.7,1.26223]
[1744904915552,1.6437,1585.1,1585.0,1.26205]
[1744904915849,1.6437,1585.1,1585.0,11.66645]
[1744904916239,1.6437,1585.1,1585.0,11.66745]
[1744904919343,1.6437,1585.1,1585.0,4.47085]
[1744904919751,2.90567,1585.1,1585.0,4.47085]
[1744904920149,1.6437,1585.1,1585.0,4.47085]
[1744904920651,4.60117,1585.1,1585.0,4.47085]
[1744904921753,4.60117,1585.1,1585.0,0.001]
[1744904922751,1.26229,1584.7,1584.6,3.21727598]
[1744904923744,2.96179,1584.7,1584.6,3.21727598]
[1744904923945,2.96179,1584.7,1584.6,4.47964598]
[1744904924947,1.6995,1584.7,1584.6,4.47964598]
[1744904925350,1.26205,1585.0,1584.7,1.26229]
[1744904925549,1.26213,1584.9,1584.8,2.10645]
[1744904925753,1.26219,1584.9,1584.8,1.26218]
[1744904926046,1.26229,1584.7,1584.6,4.47957598]
[1744904926450,1.26229,1584.7,1584.6,3.21727598]
[1744904926650,3.77209,1584.7,1584.6,3.21727598]
[1744904926955,3.77209,1584.7,1584.6,4.47964598]
[1744904927256,5.99,1585.0,1584.9,1.26213]
[1744904927446,8.95201,1585.0,1584.9,1.26213]
[1744904928251,8.95199,1585.0,1584.9,1.26213]
[1744904928756,10.56009,1585.0,1584.9,1.26213]
[1744904929566,2.4645,1585.0,1584.9,1.26213]
[1744904930248,3.72655,1585.0,1584.9,1.26213]
[1744904930449,2.4645,1585.0,1584.9,1.26213]
[1744904930648,3.72655,1585.0,1584.9,1.26213]
[1744904931154,2.4645,1585.0,1584.9,1.26213]
[1744904931553,3.72655,1585.0,1584.9,1.26213]
[1744904931755,1.26213,1584.9,1584.8,1.26214]
[1744904932053,3.78783,1584.9,1584.8,1.26214]
[1744904932258,2.5257,1584.9,1584.8,1.26214]
[1744904934056,3.78783,1584.9,1584.8,1.26214]
[1744904936259,2.5257,1584.9,1584.8,1.26214]
[1744904936659,2.5257,1584.9,1584.8,2.91764]
[1744904937159,3.78783,1584.9,1584.8,1.26214]
[1744904937356,2.5257,1584.9,1584.7,5.4412]
[1744904937551,1.6167,1584.8,1584.7,6.70349]
[1744904938963,2.87891,1584.8,1584.7,2.07349]
[1744904939158,1.26229,1584.7,1584.6,7.84227598]
[1744904939365,3.75249,1584.7,1584.6,3.21727598]
[1744904939865,3.75249,1584.7,1584.6,4.47964598]
[1744904940354,3.75249,1584.7,1584.6,3.21727598]
[1744904941065,3.75249,1584.7,1584.6,4.47964598]
[1744904941366,2.4902,1584.7,1584.6,4.47964598]
[1744904941553,3.75249,1584.7,1584.6,4.47964598]
[1744904942067,11.96029,1584.7,1584.6,0.00947598]
[1744904942256,8.75249,1584.7,1584.6,0.00947598]
[1744904942455,11.96029,1584.7,1584.6,0.00947598]
[1744904942660,8.75249,1584.7,1584.6,0.00947598]
[1744904943160,1.26261,1584.3,1584.2,12.72204408]
[1744904943661,1.26261,1584.3,1584.2,8.25160408]
[1744904944166,2.93491,1584.3,1584.2,8.25160408]
[1744904945053,7.93491,1584.3,1584.2,8.25160408]
[1744904946063,12.56091,1584.3,1584.2,8.25160408]
[1744904947263,1.26269,1584.2,1584.1,0.00947598]
[1744904947469,3.73959,1584.2,1584.1,0.00947598]
[1744904947969,11.94739,1584.2,1584.1,0.00947598]
[1744904948160,1.26317,1583.6,1583.5,9.51483408]
[1744904948362,1.26317,1583.6,1583.5,8.25160408]
[1744904949259,2.96537,1583.6,1583.5,8.25160408]
[1744904949459,2.96537,1583.6,1583.5,9.51485408]
[1744904949663,2.96537,1583.6,1583.5,8.25160408]
[1744904950858,2.96537,1583.6,1583.4,1.27280598]
[1744904950859,1.26325,1583.5,1583.4,1.27280598]
[1744904951068,2.96545,1583.5,1583.4,0.00947598]
[1744904952378,2.96545,1583.5,1583.4,1.27280598]
[1744904953267,2.96545,1583.5,1583.4,0.00947598]
[1744904957062,2.96545,1583.5,1583.0,41.6865]
[1744904957063,9.8604,1583.5,1583.0,41.6865]
[1744904957373,1.26357,1583.1,1583.0,2.15012]
[1744904958276,1.26357,1583.1,1583.0,0.8865]
[1744904958466,1.26357,1583.1,1583.0,4.0943]
[1744904958667,2.14367,1583.1,1583.0,0.8865]
[1744904960073,0.8801,1583.1,1583.0,2.15015]
[1744904960267,0.8801,1583.1,1583.0,11.77315]
[1744904962075,2.4931,1583.1,1583.0,11.77315]
[1744904963677,0.00947598,1583.2,1583.1,1.26357]
[1744904963877,0.00947598,1583.2,1583.1,4.47137]
[1744904969679,0.00947598,1583.2,1583.1,3.2078]
[1744904969878,1.26357,1583.1,1583.0,0.001]
[1744904970782,1.26357,1583.1,1583.0,1.26465]
[1744904971579,1.26357,1583.1,1583.0,0.001]
[1744904971976,1.26357,1583.1,1583.0,1.26465]
[1744904972283,1.26357,1583.1,1583.0,0.001]
[1744904972682,1.26357,1583.1,1583.0,1.26465]
[1744904973882,1.27300598,1583.2,1583.1,1.26357]
[1744904975080,1.27300598,1583.2,1583.1,4.47137]
[1744904975677,0.00947598,1583.2,1583.1,4.47137]
[1744904975885,1.27296598,1583.2,1583.1,1.26357]
[1744904976281,0.00947598,1583.2,1583.1,1.26357]
[1744904977085,0.00947598,1583.2,1583.1,4.47137]
[1744904977284,1.27296598,1583.2,1583.1,4.47137]
[1744904977583,1.27296598,1583.2,1583.1,1.26357]
[1744904978194,1.26357,1583.1,1583.0,1.2646]
[1744904978986,1.26357,1583.1,1583.0,0.001]
[1744904979476,4.55197,1583.1,1583.0,0.001]
[1744904983776,2.88897,1583.1,1583.0,0.001]
[1744904983985,3.77547,1583.1,1583.0,0.001]
[1744904991787,2.88897,1583.1,1583.0,0.001]
[1744904991988,1.26357,1583.1,1583.0,2.94475]
[1744904992185,1.26357,1583.1,1583.0,3.73965]
[1744904992794,3.00463598,1583.2,1583.1,1.26357]
[1744904992996,1.27303598,1583.2,1583.1,2.5295]
[1744904993495,1.27303598,1583.2,1583.1,3.79307]
[1744904994289,0.00947598,1583.2,1583.1,3.79307]
[1744904994491,0.00947598,1583.2,1583.1,8.79307]
[1744904995202,0.00947598,1583.2,1583.1,52.80087]
[1744904997598,10.29685725,1583.7,1583.4,1.26333]
[1744904997799,1.26328,1583.5,1583.4,4.47113]
[1744904998010,1.26328,1583.5,1583.4,5.26613]
[1744904998706,2.93993,1583.6,1583.5,1.26325]
[1744904998899,2.94940598,1583.6,1583.5,1.26325]
[1744905000610,0.00947598,1583.6,1583.5,1.26325]
[1744905000802,0.00947598,1583.6,1583.5,6.26325]
[1744905001515,0.00947598,1583.6,1583.5,47.06325]
[1744905001706,0.00947598,1583.6,1583.5,42.06325]
[1744905001901,0.00947598,1583.6,1583.4,5.26607]
[1744905002104,1.26331,1583.5,1583.3,4.619]
[1744905002303,1.26331,1583.5,1583.4,1.26332]
[1744905002914,1.26331,1583.5,1583.4,4.47112]
[1744905003407,1.26331,1583.5,1583.4,3.2078]
[1744905003600,1.26331,1583.5,1583.4,4.47113]
[1744905003913,1.27269598,1583.6,1583.5,1.26325]
[1744905004114,1.26325,1583.5,1583.4,4.47106]
[1744905004808,1.26325,1583.5,1583.4,3.2078]
[1744905005314,1.26325,1583.5,1583.4,4.47113]
[1744905007615,1.26325,1583.5,1583.4,3.2078]
[1744905007806,1.26325,1583.5,1583.4,4.47113]
[1744905008407,1.26325,1583.5,1583.4,3.2078]
[1744905009217,1.26325,1583.5,1583.4,4.47113]
[1744905011216,1.26325,1583.5,1583.4,3.2078]
[1744905013527,1.26349,1583.3,1583.2,3.2078]
[1744905013821,1.26349,1583.3,1583.2,4.47126]
[1744905014215,3.00558,1583.4,1583.3,1.26341]
[1744905014416,1.26338,1583.4,1583.3,1.26341]
[1744905015820,2.86508,1583.4,1583.3,2.95091]
[1744905016618,2.86508,1583.4,1583.3,1.26341]
[1744905017823,1.6017,1583.4,1583.3,2.94231]
[1744905018014,2.1398,1583.5,1583.4,1.26333]
[1744905018015,1.26327,1583.5,1583.4,1.26333]
[1744905018219,1.26327,1583.5,1583.4,6.98673]
[1744905019518,1.26327,1583.5,1583.4,5.30783]
[1744905019723,1.26333,1583.4,1583.3,4.618]
[1744905019921,3.02853,1583.4,1583.3,4.618]
[1744905020125,4.80593,1583.4,1583.3,4.618]
[1744905020324,4.80593,1583.4,1583.3,5.88141]
[1744905020623,4.80593,1583.4,1583.3,4.618]
[1744905021019,1.26341,1583.3,1583.2,3.2078]
[1744905021224,3.04081,1583.3,1583.2,4.47129]
[1744905023621,1.7774,1583.3,1583.2,4.47129]
[1744905023821,3.04081,1583.3,1583.2,4.47129]
[1744905024026,1.7774,1583.3,1583.2,4.47129]
[1744905024223,1.7774,1583.3,1583.2,6.11429]
[1744905024722,3.04081,1583.3,1583.2,3.2078]
[1744905025027,1.26357,1583.1,1583.0,0.001]
[1744905025426,4.57407,1583.1,1583.0,0.001]
[1744905027031,3.3105,1583.1,1583.0,1.26465]
[1744905027240,4.57407,1583.1,1583.0,1.26465]
[1744905029334,3.3105,1583.1,1583.0,1.26465]
[1744905029534,1.6112,1583.1,1583.0,2.13645]
[1744905029833,7.2534,1583.4,1583.1,3.15892]
[1744905030038,1.2634,1583.4,1583.3,1.26341]
[1744905030235,3.0103,1583.4,1583.3,1.26341]
[1744905030436,1.26341,1583.3,1583.2,3.2078]
[1744905030625,1.26349,1583.2,1583.1,2.13531]
[1744905030934,3.01037,1583.3,1583.2,1.26349]
[1744905031131,1.7469,1583.3,1583.2,4.47129]
[1744905031525,2.97081,1583.5,1583.4,1.26333]
[1744905031721,9.50116323,1583.6,1583.4,1.26333]
[1744905031722,6.34315323,1583.6,1583.5,1.26325]
[1744905031934,0.00947598,1583.6,1583.5,4.58645]
[1744905032234,0.00947598,1583.6,1583.5,9.19845]
[1744905032625,1.75337598,1583.6,1583.5,9.19845]
[1744905033123,6.33367725,1583.9,1583.5,12.9352]
[1744905033324,6.33367725,1583.9,1583.8,1.26301]
[1744905033537,6.33367725,1583.9,1583.8,5.87501]
[1744905033830,6.33367725,1583.9,1583.8,7.56591]
[1744905035133,3.01624598,1584.0,1583.9,1.26293]
[1744905035323,1.75337598,1584.0,1583.9,4.47073]
[1744905035522,1.75337598,1584.0,1583.9,7.02123]
[1744905035933,3.01622598,1584.0,1583.9,5.7583]
[1744905036133,3.01622598,1584.0,1583.9,4.0879]
[1744905036631,3.01622598,1584.0,1583.9,3.2078]
[1744905036830,1.26293,1583.9,1583.8,0.00947598]
[1744905037025,2.91993,1583.9,1583.8,0.00947598]
[1744905037934,1.657,1583.9,1583.8,1.27248598]
[1744905038333,2.91993,1583.9,1583.8,1.27248598]
[1744905039641,1.657,1583.9,1583.8,4.48028598]
[1744905040237,1.657,1583.9,1583.8,6.18288598]
[1744905040436,2.91993,1583.9,1583.8,6.18288598]
[1744905040637,2.91993,1583.9,1583.8,4.48028598]
[1744905040837,2.91993,1583.9,1583.8,3.21727598]
[1744905041638,1.657,1583.9,1583.8,4.48028598]
[1744905041835,2.91993,1583.9,1583.8,4.48028598]
[1744905043240,9.1466,1584.3,1583.8,4.48028598]
[1744905043241,8.44408408,1584.6,1584.4,1.26253]
[1744905043434,10.06388408,1584.6,1584.4,9.08133]
[1744905043633,10.06388408,1584.6,1584.4,54.88133]
[1744905043832,8.44408408,1584.6,1584.4,54.88133]
[1744905044027,8.44408408,1584.6,1584.4,49.88133]
[1744905044233,8.44408408,1584.6,1584.4,51.63263]
[1744905044540,2.64027445,1584.5,1584.4,63.00511218]
[1744905044740,4.45e-06,1584.5,1584.4,63.47106188]
[1744905044935,5.92410166,1584.7,1584.6,1.26237]
[1744905045136,5.92410166,1584.7,1584.6,4.47017]
[1744905045440,5.92410166,1584.7,1584.6,9.47017]
[1744905045642,1.6198,1584.9,1584.8,1.26221]
[1744905045943,1.26233,1584.7,1584.6,4.47017]
[1744905046243,1.26227,1584.8,1584.6,4.47014]
[1744905046632,1.26229,1584.7,1584.6,3.2078]
[1744905047247,1.26237,1584.6,1584.5,0.00947598]
[1744905047436,2.12477,1584.6,1584.5,0.00947598]
[1744905049144,0.8624,1584.6,1584.5,0.00947598]
[1744905049446,0.8624,1584.6,1584.5,1.27192598]
[1744905049847,0.8712,1584.7,1584.6,1.26237]
[1744905050242,0.8712,1584.7,1584.6,4.47017]
[1744905050446,3.2078,1585.5,1584.6,14.0638]
[1744905050654,2.94256,1585.4,1585.2,1.26184]
[1744905051045,1.26189,1585.2,1585.1,4.61]
[1744905051348,3.2078,1585.3,1585.0,1.26303]
[1744905051649,4.8353,1585.4,1585.0,1.26305]
[1744905051837,7.98982,1585.4,1585.0,1.26305]
[1744905052041,1.26194,1585.2,1585.0,0.001]
[1744905052248,1.26187,1585.3,1585.1,1.26197]
[1744905052539,1.26189,1585.2,1585.0,1.26298]
[1744905052739,4.46964,1585.3,1585.2,1.26189]
[1744905053046,1.26191,1585.2,1585.0,1.263]
[1744905053358,1.26191,1585.2,1585.1,1.26197]
[1744905053650,4.46968,1585.3,1585.2,1.26189]
[1744905054250,3.2078,1585.3,1585.1,1.2619]
[1744905054750,1.26197,1585.1,1585.0,1.26301]
[1744905055050,1.26197,1585.1,1585.0,0.001]
[1744905055847,1.26197,1585.1,1585.0,1.26305]
[1744905056040,1.26194,1585.2,1585.1,1.26197]
[1744905056246,1.26197,1585.1,1585.0,1.263]
[1744905056447,4.46977,1585.1,1585.0,0.001]
[1744905058363,1.26236,1584.7,1584.6,1.26233]
[1744905058656,1.26237,1584.6,1584.5,9.90825598]
[1744905058846,1.26236,1584.7,1584.6,1.26233]
[1744905059854,3.15559,1584.8,1584.5,9.90828598]
[1744905060153,1.26237,1584.6,1584.5,7.81927598]
[1744905060350,4.47017,1584.6,1584.5,0.00947598]
[1744905060744,4.47017,1584.6,1584.5,1.27192598]
[1744905060951,1.26237,1584.6,1584.5,0.00947598]
[1744905061150,4.47017,1584.6,1584.5,0.00947598]
[1744905061549,1.26237,1584.6,1584.5,0.00947598]
[1744905061755,4.47017,1584.6,1584.5,0.00947598]
[1744905062055,1.26237,1584.6,1584.5,0.00947598]
[1744905062256,4.47017,1584.6,1584.5,0.00947598]
[1744905063155,6.19107,1584.6,1584.5,0.00947598]
[1744905064355,1.26277,1584.1,1584.0,0.001]
[1744905065057,1.26315,1583.7,1583.5,23.85611771]
[1744905065356,1.26313,1583.7,1583.6,1.26312]
[1744905065557,1.26313,1583.7,1583.6,2.86772]
[1744905065958,0.00947598,1583.8,1583.7,1.26309]
[1744905066259,9.14612,1584.6,1583.9,3.15713]
[1744905066462,1.7516,1584.5,1584.2,1.26266]
[1744905066654,1.26253,1584.4,1584.3,1.6046]
[1744905067254,3.01413,1584.4,1584.3,1.6046]
[1744905067554,1.26261,1584.3,1584.2,1.27210598]
[1744905067767,2.87431,1584.3,1584.2,0.00947598]
[1744905068258,1.6117,1584.3,1584.2,0.00947598]
[1744905068459,2.87431,1584.3,1584.2,0.00947598]
[1744905068763,1.6117,1584.3,1584.2,1.27216598]
[1744905069052,2.87431,1584.3,1584.2,1.70327598]
[1744905069756,1.6117,1584.3,1584.2,2.96596598]
[1744905069955,1.6117,1584.5,1584.4,1.26252]
[1744905070159,1.6117,1584.7,1584.6,1.26237]
[1744905070358,1.6117,1584.7,1584.6,4.47017]
[1744905070656,5.99,1585.2,1584.6,11.36372]
[1744905070858,1.7669,1585.0,1584.9,1.26209]
[1744905071158,1.26183,1585.3,1585.1,1.26196]
[1744905071362,3.02873,1585.3,1585.0,5.86499]
[1744905071562,1.2619,1585.2,1585.0,6.22797598]
[1744905071753,3.0288,1585.2,1585.0,6.22797598]
[1744905072060,3.0288,1585.2,1585.0,7.48997598]
[1744905072255,1.26186,1585.3,1585.0,6.22897598]
[1744905072459,1.7669,1585.3,1585.2,1.26189]
[1744905072662,1.26189,1585.2,1585.0,5.87547598]
[1744905072955,3.02887,1585.1,1585.0,0.01047598]
[1744905073162,4.65537,1585.1,1585.0,0.01047598]
[1744905076757,4.65537,1585.1,1585.0,1.27252598]
[1744905077057,1.7669,1585.1,1585.0,1.27252598]
[1744905077258,3.02887,1585.1,1585.0,2.12522598]
[1744905078966,3.02887,1585.1,1585.0,0.86317598]
[1744905079167,1.7669,1585.1,1585.0,1.27252598]
[1744905079362,1.7669,1585.1,1585.0,2.97712598]
[1744905079556,1.26178,1585.4,1585.3,1.26181]
[1744905079756,2.94098,1585.4,1585.3,1.26181]
[1744905079953,1.26159,1585.6,1585.4,1.26168]
[1744905080154,1.26165,1585.5,1585.4,2.98188]
[1744905080960,2.99894,1585.6,1585.5,1.26165]
[1744905081160,7.7022,1585.8,1585.5,1.7202]
[1744905081359,2.99882,1585.7,1585.6,1.26157]
[1744905081561,5.99,1585.8,1585.7,1.26149]
[1744905081766,8.97948145,1585.8,1585.7,1.26149]
[1744905081957,1.7373,1585.8,1585.6,3.8461]
[1744905082268,1.26149,1585.7,1585.6,2.5846]
[1744905082460,1.7373,1585.8,1585.6,3.83693145]
[1744905082658,1.72806145,1585.8,1585.6,43.37536145]
[1744905082854,2.98951145,1585.8,1585.7,1.26149]
[1744905083166,2.98951145,1585.8,1585.6,43.37536145]
[1744905083167,2.98951145,1585.8,1585.6,44.63688145]
[1744905083761,1.26149,1585.7,1585.6,43.37536145]
[1744905083963,1.26149,1585.7,1585.6,43.3661229]
[1744905084158,1.26149,1585.7,1585.6,41.6459229]
[1744905084366,1.26149,1585.7,1585.6,40.8]
[1744905084969,1.26149,1585.7,1585.6,42.06157]
[1744905085163,6.36121,1585.9,1585.5,4.598]
[1744905085464,1.26149,1585.7,1585.6,1.26153]
[1744905085669,1.26149,1585.7,1585.6,1.25229145]
[1744905086061,1.26157,1585.6,1585.5,7.54139]
[1744905086263,1.26154,1585.7,1585.6,1.26155]
[1744905086762,2.92464,1585.8,1585.7,1.26149]
[1744905086963,2.91540145,1585.8,1585.7,1.26149]
[1744905087162,1.26149,1585.7,1585.6,3.74801]
[1744905087363,1.65396145,1585.8,1585.7,1.26149]
[1744905087364,1.26148,1585.8,1585.7,1.26149]
[1744905087658,1.25224145,1585.8,1585.7,1.26149]
[1744905088362,1.26148,1585.8,1585.7,1.26149]
[1744905088759,1.7753,1585.8,1585.7,1.26149]
[1744905088959,2.97345,1586.1,1586.0,1.26126]
[1744905089164,4.65928,1586.1,1586.0,1.26226]
[1744905089872,4.65928,1586.1,1586.0,0.001]
[1744905090876,1.26126,1586.0,1585.9,0.00947598]
[1744905091074,6.15496,1586.0,1585.9,0.00947598]
[1744905091263,11.15496,1586.0,1585.9,0.00947598]
[1744905091774,7.94716,1586.0,1585.9,0.00947598]
[1744905091973,11.15496,1586.0,1585.9,0.00947598]
[1744905092369,6.15496,1586.0,1585.9,0.00947598]
[1744905092567,2.94716,1586.0,1585.9,0.00947598]
[1744905092969,2.94716,1586.0,1585.9,1.27081598]
[1744905093169,2.94716,1586.0,1585.9,0.00947598]
[1744905093774,2.94716,1586.0,1585.9,1.27081598]
[1744905094173,1.6859,1586.0,1585.9,1.27081598]
[1744905094474,2.94716,1586.0,1585.9,1.27081598]
[1744905095275,6.36035,1586.4,1585.9,8.21727598]
[1744905095479,2.96738,1586.3,1586.1,1.26113]
[1744905095775,1.2611,1586.2,1586.1,3.01713]
[1744905095973,2.9674,1586.2,1586.1,1.26113]
[1744905096277,1.7063,1586.2,1586.1,1.26113]
[1744905096475,1.7063,1586.2,1586.1,3.01713]
[1744905096675,1.7063,1586.2,1586.1,3.81753]
[1744905096871,2.9674,1586.2,1586.1,3.81753]
[1744905097176,2.9674,1586.2,1586.1,2.5564]
[1744905097671,1.26118,1586.1,1586.0,4.597]
[1744905097877,1.26118,1586.1,1586.0,5.8582]
[1744905098071,2.96748,1586.1,1586.0,6.353]
[1744905098576,2.96748,1586.1,1586.0,4.597]
[1744905098776,2.96748,1586.1,1586.0,5.85826]
[1744905099179,1.7063,1586.1,1586.0,5.85826]
[1744905099379,1.26115,1586.2,1586.1,1.26118]
[1744905099570,2.99485,1586.2,1586.1,2.89858]
[1744905099771,2.99485,1586.2,1586.1,1.6374]
[1744905099973,2.99487,1586.2,1586.1,1.26118]
[1744905100166,1.7337,1586.2,1586.0,6.2344]
[1744905100381,1.7337,1586.1,1586.0,7.49562]
[1744905100766,0.8396,1586.4,1586.3,1.26102]
[1744905100972,1.7337,1586.4,1586.3,1.26102]
[1744905101278,2.99464,1586.4,1586.3,1.26102]
[1744905102176,2.99464,1586.4,1586.2,2.613]
[1744905102382,2.99464,1586.4,1586.3,1.7609]
[1744905102581,1.26102,1586.3,1586.2,2.11314]
[1744905102776,1.26102,1586.3,1586.2,3.87404]
[1744905103080,1.26099,1586.4,1586.2,3.87403]
[1744905103281,1.26099,1586.4,1586.3,1.26098]
[1744905103282,1.26096,1586.4,1586.3,1.26098]
[1744905103481,1.26096,1586.4,1586.3,3.02188]
[1744905103875,1.26096,1586.4,1586.3,1.7609]
[1744905104180,1.26096,1586.4,1586.3,3.02192]
[1744905105182,1.26102,1586.3,1586.2,2.11314]
[1744905105376,1.26102,1586.3,1586.2,3.82674]
[1744905105682,1.26098,1586.4,1586.3,1.26099]
[1744905106182,4.0683,1586.6,1586.5,1.26086]
[1744905106383,1.26088,1586.5,1586.4,1.26088]
[1744905106580,2.12133,1586.6,1586.5,1.26086]
[1744905106778,1.26086,1586.5,1586.4,2.97447]
[1744905106979,2.11210145,1586.6,1586.5,1.26086]
[1744905107179,0.8420229,1586.6,1586.5,1.26086]
[1744905107583,0.847,1586.7,1586.6,1.26078]
[1744905108383,2.1077,1586.7,1586.6,1.26078]
[1744905108792,0.847,1586.7,1586.6,1.26078]
[1744905109291,1.26069,1586.8,1586.7,1.2607]
[1744905109491,3.15136,1586.9,1586.6,2.11552]
[1744905109492,1.26072,1586.7,1586.6,2.11552]
[1744905109789,1.26072,1586.7,1586.6,6.70952]
[1744905109985,1.26072,1586.7,1586.6,5.4488]
[1744905110391,2.07132,1586.7,1586.6,5.4488]
[1744905110591,0.8106,1586.7,1586.6,47.50958]
[1744905110788,2.0713,1586.7,1586.6,47.50958]